[Event "Titled Tuesday Blitz March 22 Early 2022"]
[White "Obolentseva, Alexandra"]
[Black "Garv Gaur"]
[WhiteFideId "24153648"]
[BlackFideId "45030839"]
[WhiteElo "2113"]
[BlackElo "1950"]
[Result "1/2-1/2"]
[Round "08"]
[TimeControl "180+1"]
[Date "2022.03.22"]
[WhiteClock "0:00:14"]
[BlackClock "0:00:10"]

1. d4 {[%clk 0:03:00]}  d5 {[%clk 0:02:58]} 2. c4 {[%clk 0:02:59]}  e6 {[%clk 0:02:58]} 3. Nc3 {[%clk 0:02:58]}  Nf6 {[%clk 0:02:58]} 4. Bg5 {[%clk 0:02:51]}  Be7 {[%clk 0:02:58]} 5. e3 {[%clk 0:02:50]}  O-O {[%clk 0:02:57]} 6. Qc2 {[%clk 0:02:50]}  h6 {[%clk 0:02:57]} 7. Bh4 {[%clk 0:02:48]}  c6 {[%clk 0:02:57]} 8. Nf3 {[%clk 0:02:47]}  Nbd7 {[%clk 0:02:56]} 9. Bd3 {[%clk 0:02:47]}  b6 {[%clk 0:02:57]} 10. O-O {[%clk 0:02:47]}  Bb7 {[%clk 0:02:57]} 11. cxd5 {[%clk 0:02:44]}  exd5 {[%clk 0:02:43]} 12. Rad1 {[%clk 0:02:36]}  Re8 {[%clk 0:02:42]} 13. Rfe1 {[%clk 0:02:12]}  Ne4 {[%clk 0:02:42]} 14. Bxe7 {[%clk 0:02:08]}  Qxe7 {[%clk 0:02:43]} 15. Bxe4 {[%clk 0:01:56]}  dxe4 {[%clk 0:02:42]} 16. Nd2 {[%clk 0:01:56]}  Nf6 {[%clk 0:02:31]} 17. Nc4 {[%clk 0:01:49]}  Rad8 {[%clk 0:02:24]} 18. Nd2 {[%clk 0:01:37]}  c5 {[%clk 0:02:19]} 19. dxc5 {[%clk 0:01:37]}  Qxc5 {[%clk 0:02:18]} 20. Nb3 {[%clk 0:01:34]}  Qc4 {[%clk 0:02:16]} 21. Nd2 {[%clk 0:01:31]}  Qe6 {[%clk 0:01:58]} 22. Qb3 {[%clk 0:01:22]}  Qg4 {[%clk 0:01:53]} 23. Nf1 {[%clk 0:01:13]}  Rd3 {[%clk 0:01:46]} 24. h3 {[%clk 0:00:49]}  Qg5 {[%clk 0:01:38]} 25. Ng3 {[%clk 0:00:37]}  Qe5 {[%clk 0:01:30]} 26. Qc2 {[%clk 0:00:28]}  Red8 {[%clk 0:01:29]} 27. Rxd3 {[%clk 0:00:27]}  exd3 {[%clk 0:01:29]} 28. Qd2 {[%clk 0:00:27]}  h5 {[%clk 0:01:25]} 29. e4 {[%clk 0:00:27]}  h4 {[%clk 0:01:14]} 30. Nf5 {[%clk 0:00:27]}  Nxe4 {[%clk 0:01:11]} 31. Nxe4 {[%clk 0:00:26]}  Qxf5 {[%clk 0:01:11]} 32. Nc3 {[%clk 0:00:24]}  g6 {[%clk 0:01:05]} 33. Re3 {[%clk 0:00:23]}  Kg7 {[%clk 0:01:05]} 34. f3 {[%clk 0:00:20]}  b5 {[%clk 0:01:04]} 35. Kh1 {[%clk 0:00:19]}  Qf4 {[%clk 0:01:00]} 36. Ne4 {[%clk 0:00:14]}  Bxe4 {[%clk 0:00:57]} 37. fxe4 {[%clk 0:00:15]}  Rd4 {[%clk 0:00:57]} 38. e5 {[%clk 0:00:14]}  Re4 {[%clk 0:00:35]} 39. Rxd3 {[%clk 0:00:14]}  Qf1+ {[%clk 0:00:35]} 40. Kh2 {[%clk 0:00:14]}  Rxe5 {[%clk 0:00:35]} 41. Rf3 {[%clk 0:00:14]}  Qe1 {[%clk 0:00:29]} 42. Qd4 {[%clk 0:00:13]}  Qe4 {[%clk 0:00:23]} 43. Qc3 {[%clk 0:00:13]}  Kg8 {[%clk 0:00:19]} 44. Qc8+ {[%clk 0:00:13]}  Re8 {[%clk 0:00:19]} 45. Qc3 {[%clk 0:00:13]}  Qe5+ {[%clk 0:00:19]} 46. Qxe5 {[%clk 0:00:13]}  Rxe5 {[%clk 0:00:20]} 47. Rc3 {[%clk 0:00:14]}  Re2 {[%clk 0:00:19]} 48. Rb3 {[%clk 0:00:13]}  a6 {[%clk 0:00:19]} 49. Kg1 {[%clk 0:00:14]}  Rc2 {[%clk 0:00:19]} 50. Rb4 {[%clk 0:00:14]}  g5 {[%clk 0:00:19]} 51. a4 {[%clk 0:00:13]}  bxa4 {[%clk 0:00:18]} 52. Rxa4 {[%clk 0:00:14]}  Rxb2 {[%clk 0:00:19]} 53. Rxa6 {[%clk 0:00:14]}  Kg7 {[%clk 0:00:20]} 54. Ra5 {[%clk 0:00:14]}  Kg6 {[%clk 0:00:19]} 55. Ra6+ {[%clk 0:00:15]}  f6 {[%clk 0:00:19]} 56. Ra5 {[%clk 0:00:16]}  Rc2 {[%clk 0:00:18]} 57. Ra6 {[%clk 0:00:16]}  Re2 {[%clk 0:00:18]} 58. Ra5 {[%clk 0:00:16]}  Re5 {[%clk 0:00:18]} 59. Ra6 {[%clk 0:00:17]}  Kf5 {[%clk 0:00:19]} 60. Kf2 {[%clk 0:00:17]}  Rb5 {[%clk 0:00:18]} 61. Ra2 {[%clk 0:00:16]}  Rb4 {[%clk 0:00:17]} 62. Rc2 {[%clk 0:00:17]}  Kf4 {[%clk 0:00:17]} 63. Ra2 {[%clk 0:00:17]}  f5 {[%clk 0:00:17]} 64. Rc2 {[%clk 0:00:17]}  g4 {[%clk 0:00:17]} 65. hxg4 {[%clk 0:00:18]}  fxg4 {[%clk 0:00:17]} 66. g3+ {[%clk 0:00:18]}  hxg3+ {[%clk 0:00:15]} 67. Kg2 {[%clk 0:00:19]}  Re4 {[%clk 0:00:15]} 68. Ra2 {[%clk 0:00:19]}  Rc4 {[%clk 0:00:14]} 69. Rb2 {[%clk 0:00:19]}  Rd4 {[%clk 0:00:14]} 70. Ra2 {[%clk 0:00:19]}  Kg5 {[%clk 0:00:11]} 71. Kxg3 {[%clk 0:00:19]}  Rd3+ {[%clk 0:00:12]} 72. Kg2 {[%clk 0:00:19]}  Kh4 {[%clk 0:00:12]} 73. Rb2 {[%clk 0:00:20]}  Rg3+ {[%clk 0:00:12]} 74. Kh2 {[%clk 0:00:20]}  Rd3 {[%clk 0:00:11]} 75. Ra2 {[%clk 0:00:20]}  Kg5 {[%clk 0:00:10]} 76. Ra5+ {[%clk 0:00:20]}  Kf4 {[%clk 0:00:10]} 77. Ra2 {[%clk 0:00:20]}  Kf3 {[%clk 0:00:10]} 78. Ra1 {[%clk 0:00:19]}  Rd2+ {[%clk 0:00:07]} 79. Kg1 {[%clk 0:00:18]}  Rd3 {[%clk 0:00:07]} 80. Rf1+ {[%clk 0:00:13]}  Kg3 {[%clk 0:00:08]} 81. Ra1 {[%clk 0:00:14]}  Kh3 {[%clk 0:00:07]} 82. Kh1 {[%clk 0:00:14]}  g3 {[%clk 0:00:06]} 83. Kg1 {[%clk 0:00:14]}  Rd2 {[%clk 0:00:06]} 84. Rb1 {[%clk 0:00:14]}  Rg2+ {[%clk 0:00:06]} 85. Kh1 {[%clk 0:00:14]}  Rh2+ {[%clk 0:00:06]} 86. Kg1 {[%clk 0:00:15]}  Rc2 {[%clk 0:00:07]} 87. Kh1 {[%clk 0:00:14]}  Kg4 {[%clk 0:00:07]} 88. Kg1 {[%clk 0:00:14]}  Kf3 {[%clk 0:00:07]} 89. Rb3+ {[%clk 0:00:14]}  Kg4 {[%clk 0:00:08]} 90. Rb1 {[%clk 0:00:15]}  Rd2 {[%clk 0:00:07]} 91. Rc1 {[%clk 0:00:15]}  Kh3 {[%clk 0:00:07]} 92. Kh1 {[%clk 0:00:15]}  Rh2+ {[%clk 0:00:07]} 93. Kg1 {[%clk 0:00:15]}  Rg2+ {[%clk 0:00:08]} 94. Kh1 {[%clk 0:00:15]}  Re2 {[%clk 0:00:08]} 95. Kg1 {[%clk 0:00:16]}  Rg2+ {[%clk 0:00:08]} 96. Kh1 {[%clk 0:00:16]}  Rf2 {[%clk 0:00:09]} 97. Kg1 {[%clk 0:00:16]}  Kg4 {[%clk 0:00:09]} 98. Rc4+ {[%clk 0:00:15]}  Kf3 {[%clk 0:00:10]} 99. Rc3+ {[%clk 0:00:16]}  Kg4 {[%clk 0:00:09]} 100. Rc4+ {[%clk 0:00:16]}  Rf4 {[%clk 0:00:09]} 101. Rxf4+ {[%clk 0:00:14]}  Kxf4 {[%clk 0:00:10]} 102. Kg2 {[%clk 0:00:15]}  Kg4 {[%clk 0:00:11]} 103. Kg1 {[%clk 0:00:13]}  Kg5 {[%clk 0:00:10]} 104. Kg2 {[%clk 0:00:13]}  Kf4 {[%clk 0:00:11]} 105. Kg1 {[%clk 0:00:13]}  Kf3 {[%clk 0:00:09]} 106. Kf1 {[%clk 0:00:13]}  g2+ {[%clk 0:00:09]} 107. Kg1 {[%clk 0:00:14]}  Kg3 {[%clk 0:00:10]} 1/2-1/2


[Site "https://www.chess.com"]

[Event "Titled Tuesday Blitz March 22 Early 2022"]
[White "Paravyan, David"]
[Black "Vasquez Schroeder, Rodrigo"]
[WhiteFideId "4194985"]
[BlackFideId "3400042"]
[WhiteElo "2569"]
[BlackElo "2561"]
[Result "1-0"]
[Round "08"]
[TimeControl "180+1"]
[Date "2022.03.22"]
[WhiteClock "0:00:33"]
[BlackClock "0:01:38"]

1. e4 {[%clk 0:03:00]}  c6 {[%clk 0:02:56]} 2. d4 {[%clk 0:03:00]}  d5 {[%clk 0:02:57]} 3. e5 {[%clk 0:03:01]}  Bf5 {[%clk 0:02:56]} 4. Nf3 {[%clk 0:03:01]}  e6 {[%clk 0:02:56]} 5. Be2 {[%clk 0:03:02]}  Ne7 {[%clk 0:02:56]} 6. O-O {[%clk 0:03:02]}  Ng6 {[%clk 0:02:56]} 7. a4 {[%clk 0:03:01]}  Nd7 {[%clk 0:02:56]} 8. a5 {[%clk 0:03:01]}  f6 {[%clk 0:02:54]} 9. c4 {[%clk 0:03:00]}  fxe5 {[%clk 0:02:48]} 10. dxe5 {[%clk 0:03:01]}  Ndxe5 {[%clk 0:02:48]} 11. Nd4 {[%clk 0:02:53]}  Nxc4 {[%clk 0:02:47]} 12. a6 {[%clk 0:02:49]}  b6 {[%clk 0:02:37]} 13. Nxf5 {[%clk 0:02:40]}  exf5 {[%clk 0:02:37]} 14. Bxc4 {[%clk 0:02:41]}  dxc4 {[%clk 0:02:36]} 15. Qe2+ {[%clk 0:02:40]}  Be7 {[%clk 0:02:33]} 16. Qxc4 {[%clk 0:02:38]}  Qd5 {[%clk 0:02:33]} 17. Qxd5 {[%clk 0:02:32]}  cxd5 {[%clk 0:02:34]} 18. Nc3 {[%clk 0:02:33]}  Rd8 {[%clk 0:02:33]} 19. Rd1 {[%clk 0:02:30]}  Bf6 {[%clk 0:02:23]} 20. Nxd5 {[%clk 0:01:21]}  Kf7 {[%clk 0:02:20]} 21. Be3 {[%clk 0:01:19]}  Bxb2 {[%clk 0:02:18]} 22. Rab1 {[%clk 0:01:19]}  Be5 {[%clk 0:02:18]} 23. g3 {[%clk 0:01:12]}  Ke6 {[%clk 0:02:16]} 24. Nb4 {[%clk 0:01:07]}  Rc8 {[%clk 0:02:14]} 25. Re1 {[%clk 0:01:02]}  Kf7 {[%clk 0:02:14]} 26. h4 {[%clk 0:00:53]}  Rhd8 {[%clk 0:02:02]} 27. h5 {[%clk 0:00:47]}  Ne7 {[%clk 0:02:00]} 28. Bxb6 {[%clk 0:00:47]}  axb6 {[%clk 0:01:52]} 29. Rxe5 {[%clk 0:00:47]}  Rc5 {[%clk 0:01:53]} 30. Rbe1 {[%clk 0:00:41]}  Rd7 {[%clk 0:01:45]} 31. Kg2 {[%clk 0:00:35]}  Ra5 {[%clk 0:01:38]} 32. Rxe7+ {[%clk 0:00:31]}  Rxe7 {[%clk 0:01:38]} 33. Rxe7+ {[%clk 0:00:32]}  Kxe7 {[%clk 0:01:38]} 34. Nc6+ {[%clk 0:00:33]} 1-0


[Site "https://www.chess.com"]

[Event "Titled Tuesday Blitz March 22 Early 2022"]
[White "Pranav, V"]
[Black "Garriga Cazorla, Pere"]
[WhiteFideId "25060783"]
[BlackFideId "32011601"]
[WhiteElo "2349"]
[BlackElo "2458"]
[Result "1-0"]
[Round "08"]
[TimeControl "180+1"]
[Date "2022.03.22"]
[WhiteClock "0:00:16"]
[BlackClock "0:00:07"]

1. e4 {[%clk 0:03:00]}  c5 {[%clk 0:02:57]} 2. Nf3 {[%clk 0:03:00]}  d6 {[%clk 0:02:58]} 3. Bb5+ {[%clk 0:02:59]}  Nd7 {[%clk 0:02:58]} 4. d4 {[%clk 0:02:59]}  cxd4 {[%clk 0:02:59]} 5. Qxd4 {[%clk 0:03:00]}  a6 {[%clk 0:02:59]} 6. Bxd7+ {[%clk 0:03:01]}  Qxd7 {[%clk 0:03:00]} 7. c4 {[%clk 0:03:01]}  e5 {[%clk 0:03:00]} 8. Qd3 {[%clk 0:03:01]}  f5 {[%clk 0:03:01]} 9. Nc3 {[%clk 0:03:02]}  Nf6 {[%clk 0:03:02]} 10. Nd2 {[%clk 0:02:56]}  b5 {[%clk 0:02:56]} 11. O-O {[%clk 0:02:52]}  Bb7 {[%clk 0:02:52]} 12. exf5 {[%clk 0:02:50]}  Rc8 {[%clk 0:02:45]} 13. cxb5 {[%clk 0:02:49]}  axb5 {[%clk 0:02:46]} 14. Nxb5 {[%clk 0:02:46]}  d5 {[%clk 0:02:44]} 15. a4 {[%clk 0:02:46]}  e4 {[%clk 0:02:23]} 16. Qh3 {[%clk 0:02:42]}  d4 {[%clk 0:02:09]} 17. Nb3 {[%clk 0:02:32]}  d3 {[%clk 0:02:08]} 18. Bg5 {[%clk 0:02:31]}  Be7 {[%clk 0:02:00]} 19. N3d4 {[%clk 0:02:31]}  O-O {[%clk 0:01:57]} 20. Ne6 {[%clk 0:02:31]}  Rf7 {[%clk 0:01:58]} 21. Be3 {[%clk 0:02:24]}  Nd5 {[%clk 0:01:46]} 22. Nbd4 {[%clk 0:01:47]}  Bf6 {[%clk 0:01:38]} 23. a5 {[%clk 0:01:40]}  Nb4 {[%clk 0:01:33]} 24. Rac1 {[%clk 0:01:34]}  Nc2 {[%clk 0:01:20]} 25. Nxc2 {[%clk 0:01:23]}  Rxc2 {[%clk 0:01:19]} 26. Qg3 {[%clk 0:01:07]}  Qc6 {[%clk 0:00:56]} 27. Rxc2 {[%clk 0:00:50]}  dxc2 {[%clk 0:00:57]} 28. b4 {[%clk 0:00:51]}  Ba6 {[%clk 0:00:52]} 29. Qb8+ {[%clk 0:00:37]}  Bc8 {[%clk 0:00:45]} 30. b5 {[%clk 0:00:33]}  Qc4 {[%clk 0:00:45]} 31. a6 {[%clk 0:00:32]}  Rd7 {[%clk 0:00:45]} 32. Nc5 {[%clk 0:00:27]}  Rd8 {[%clk 0:00:13]} 33. a7 {[%clk 0:00:25]}  Be5 {[%clk 0:00:11]} 34. Qxe5 {[%clk 0:00:22]}  h6 {[%clk 0:00:06]} 35. a8=Q {[%clk 0:00:21]}  Rd1 {[%clk 0:00:07]} 36. Qxc8+ {[%clk 0:00:17]}  Kh7 {[%clk 0:00:07]} 37. Qxg7+ {[%clk 0:00:16]}  Kxg7 {[%clk 0:00:07]} 38. Ne6+ {[%clk 0:00:17]}  Kf6 {[%clk 0:00:07]} 39. Qxc4 {[%clk 0:00:16]} 1-0


[Site "https://www.chess.com"]

[Event "Titled Tuesday Blitz March 22 Early 2022"]
[White "Przybylski, Wojciech"]
[Black "Nenezic, Marko"]
[WhiteFideId "1117599"]
[BlackFideId "912123"]
[WhiteElo "2133"]
[BlackElo "2457"]
[Result "0-1"]
[Round "08"]
[TimeControl "180+1"]
[Date "2022.03.22"]
[WhiteClock "0:00:17"]
[BlackClock "0:00:43"]

1. e4 {[%clk 0:02:59]}  g6 {[%clk 0:02:58]} 2. d4 {[%clk 0:02:58]}  Bg7 {[%clk 0:02:59]} 3. Nc3 {[%clk 0:02:58]}  a6 {[%clk 0:03:00]} 4. Be3 {[%clk 0:02:57]}  d6 {[%clk 0:03:00]} 5. f4 {[%clk 0:02:56]}  c6 {[%clk 0:02:57]} 6. Nf3 {[%clk 0:02:54]}  d5 {[%clk 0:02:58]} 7. e5 {[%clk 0:02:53]}  h5 {[%clk 0:02:57]} 8. Qd2 {[%clk 0:02:53]}  Bg4 {[%clk 0:02:57]} 9. Be2 {[%clk 0:02:52]}  Nh6 {[%clk 0:02:57]} 10. O-O {[%clk 0:02:50]}  Nf5 {[%clk 0:02:58]} 11. Bf2 {[%clk 0:02:51]}  e6 {[%clk 0:02:51]} 12. h3 {[%clk 0:02:46]}  Bxf3 {[%clk 0:02:51]} 13. Bxf3 {[%clk 0:02:46]}  h4 {[%clk 0:02:50]} 14. Ne2 {[%clk 0:02:45]}  Nd7 {[%clk 0:02:48]} 15. b4 {[%clk 0:02:42]}  Nb6 {[%clk 0:02:47]} 16. a4 {[%clk 0:02:40]}  Nc4 {[%clk 0:02:44]} 17. Qd3 {[%clk 0:02:40]}  a5 {[%clk 0:02:44]} 18. c3 {[%clk 0:02:38]}  Bf8 {[%clk 0:02:36]} 19. Rfb1 {[%clk 0:02:36]}  Be7 {[%clk 0:02:37]} 20. Nc1 {[%clk 0:02:29]}  O-O {[%clk 0:02:31]} 21. Qe2 {[%clk 0:02:27]}  Kg7 {[%clk 0:02:23]} 22. Nd3 {[%clk 0:02:26]}  b6 {[%clk 0:02:23]} 23. b5 {[%clk 0:02:24]}  Rc8 {[%clk 0:02:18]} 24. Bg4 {[%clk 0:02:16]}  Qd7 {[%clk 0:02:14]} 25. Qe1 {[%clk 0:02:07]}  Rh8 {[%clk 0:02:14]} 26. Kh2 {[%clk 0:02:06]}  Rc7 {[%clk 0:02:14]} 27. Rb3 {[%clk 0:02:05]}  Qc8 {[%clk 0:02:13]} 28. Ra2 {[%clk 0:02:00]}  cxb5 {[%clk 0:02:13]} 29. axb5 {[%clk 0:01:58]}  a4 {[%clk 0:01:59]} 30. Rxa4 {[%clk 0:01:56]}  Na5 {[%clk 0:01:59]} 31. Rxa5 {[%clk 0:01:50]}  bxa5 {[%clk 0:01:59]} 32. Nc5 {[%clk 0:01:45]}  Ng3 {[%clk 0:01:50]} 33. b6 {[%clk 0:01:34]}  Rc6 {[%clk 0:01:49]} 34. c4 {[%clk 0:01:28]}  dxc4 {[%clk 0:01:46]} 35. Rb5 {[%clk 0:01:21]}  c3 {[%clk 0:01:42]} 36. Qxc3 {[%clk 0:01:17]}  Ne4 {[%clk 0:01:40]} 37. Qe3 {[%clk 0:01:09]}  Nxf2 {[%clk 0:01:33]} 38. Qxf2 {[%clk 0:01:09]}  Qd8 {[%clk 0:01:12]} 39. b7 {[%clk 0:01:06]}  Rb6 {[%clk 0:01:05]} 40. Qb2 {[%clk 0:01:00]}  Rxb5 {[%clk 0:01:03]} 41. Qxb5 {[%clk 0:00:59]}  Qxd4 {[%clk 0:01:03]} 42. Nd3 {[%clk 0:00:34]}  Rb8 {[%clk 0:01:02]} 43. Bf3 {[%clk 0:00:32]}  Bb4 {[%clk 0:01:03]} 44. Nxb4 {[%clk 0:00:28]}  Qxf4+ {[%clk 0:00:58]} 45. Kg1 {[%clk 0:00:28]}  axb4 {[%clk 0:00:54]} 46. Qb6 {[%clk 0:00:26]}  Qxe5 {[%clk 0:00:50]} 47. Qxb4 {[%clk 0:00:25]}  Rd8 {[%clk 0:00:50]} 48. Qxh4 {[%clk 0:00:22]}  Rd2 {[%clk 0:00:46]} 49. Qb4 {[%clk 0:00:20]}  Rb2 {[%clk 0:00:45]} 50. Qd2 {[%clk 0:00:17]}  Rxd2 {[%clk 0:00:43]} 0-1


[Site "https://www.chess.com"]

[Event "Titled Tuesday Blitz March 22 Early 2022"]
[White "Rastbod, Ali"]
[Black "Babazada, Khazar"]
[WhiteFideId "12567477"]
[BlackFideId "13413554"]
[WhiteElo "2200"]
[BlackElo "2418"]
[Result "0-1"]
[Round "08"]
[TimeControl "180+1"]
[Date "2022.03.22"]
[WhiteClock "0:00:10"]
[BlackClock "0:01:08"]

1. c4 {[%clk 0:02:47]}  Nf6 {[%clk 0:03:00]} 2. Nc3 {[%clk 0:02:44]}  g6 {[%clk 0:03:01]} 3. g3 {[%clk 0:02:43]}  Bg7 {[%clk 0:03:02]} 4. Bg2 {[%clk 0:02:43]}  O-O {[%clk 0:03:02]} 5. d4 {[%clk 0:02:43]}  d6 {[%clk 0:02:59]} 6. Nf3 {[%clk 0:02:44]}  Nbd7 {[%clk 0:02:59]} 7. O-O {[%clk 0:02:44]}  e5 {[%clk 0:02:57]} 8. e4 {[%clk 0:02:44]}  a6 {[%clk 0:02:54]} 9. Re1 {[%clk 0:02:43]}  Rb8 {[%clk 0:02:52]} 10. h3 {[%clk 0:02:39]}  exd4 {[%clk 0:02:52]} 11. Nxd4 {[%clk 0:02:39]}  Ne5 {[%clk 0:02:53]} 12. b3 {[%clk 0:02:37]}  c5 {[%clk 0:02:51]} 13. Nc2 {[%clk 0:02:20]}  b5 {[%clk 0:02:50]} 14. cxb5 {[%clk 0:02:21]}  axb5 {[%clk 0:02:50]} 15. Bb2 {[%clk 0:02:13]}  b4 {[%clk 0:02:32]} 16. Ne2 {[%clk 0:02:12]}  Ba6 {[%clk 0:02:32]} 17. Nf4 {[%clk 0:02:09]}  Re8 {[%clk 0:02:28]} 18. Ne3 {[%clk 0:02:03]}  Qd7 {[%clk 0:02:19]} 19. Qd2 {[%clk 0:01:58]}  Rbd8 {[%clk 0:02:12]} 20. Rad1 {[%clk 0:01:56]}  Bb7 {[%clk 0:02:08]} 21. Nfd5 {[%clk 0:01:53]}  Nxd5 {[%clk 0:02:06]} 22. Nxd5 {[%clk 0:01:54]}  Bxd5 {[%clk 0:01:56]} 23. Qxd5 {[%clk 0:01:55]}  Nf3+ {[%clk 0:01:54]} 24. Bxf3 {[%clk 0:01:55]}  Bxb2 {[%clk 0:01:55]} 25. Kg2 {[%clk 0:01:48]}  Bc3 {[%clk 0:01:53]} 26. Re2 {[%clk 0:01:47]}  Qe7 {[%clk 0:01:53]} 27. Qc4 {[%clk 0:01:41]}  Kg7 {[%clk 0:01:52]} 28. a4 {[%clk 0:01:41]}  Bd4 {[%clk 0:01:46]} 29. a5 {[%clk 0:01:31]}  Ra8 {[%clk 0:01:33]} 30. a6 {[%clk 0:01:31]}  Ra7 {[%clk 0:01:29]} 31. Ra2 {[%clk 0:01:28]}  Qf6 {[%clk 0:01:26]} 32. Qb5 {[%clk 0:01:09]}  Ree7 {[%clk 0:01:25]} 33. Qc6 {[%clk 0:01:05]}  Qe6 {[%clk 0:01:21]} 34. Rd3 {[%clk 0:01:04]}  h5 {[%clk 0:01:20]} 35. h4 {[%clk 0:01:04]}  Qf6 {[%clk 0:01:17]} 36. Ra5 {[%clk 0:00:58]}  Rec7 {[%clk 0:01:13]} 37. Qxc7 {[%clk 0:00:41]}  Rxc7 {[%clk 0:01:10]} 38. a7 {[%clk 0:00:42]}  Rxa7 {[%clk 0:01:11]} 39. Rxa7 {[%clk 0:00:43]}  c4 {[%clk 0:01:11]} 40. e5 {[%clk 0:00:10]}  Qxe5 {[%clk 0:01:08]} 0-1


[Site "https://www.chess.com"]

[Event "Titled Tuesday Blitz March 22 Early 2022"]
[White "Reprintsev, Alexander"]
[Black "Brodowski, Piotr"]
[WhiteFideId "14100541"]
[BlackFideId "1124480"]
[WhiteElo "2108"]
[BlackElo "2422"]
[Result "1-0"]
[Round "08"]
[TimeControl "180+1"]
[Date "2022.03.22"]
[WhiteClock "0:00:13"]
[BlackClock "0:00:20"]

1. e4 {[%clk 0:02:37]}  d6 {[%clk 0:02:53]} 2. d4 {[%clk 0:02:37]}  Nf6 {[%clk 0:02:52]} 3. Nc3 {[%clk 0:02:36]}  g6 {[%clk 0:02:48]} 4. h4 {[%clk 0:02:36]}  h5 {[%clk 0:02:48]} 5. Nf3 {[%clk 0:02:34]}  Bg7 {[%clk 0:02:48]} 6. Ng5 {[%clk 0:02:34]}  a5 {[%clk 0:02:48]} 7. f3 {[%clk 0:02:26]}  c6 {[%clk 0:02:48]} 8. a4 {[%clk 0:02:25]}  O-O {[%clk 0:02:46]} 9. Be3 {[%clk 0:02:25]}  Na6 {[%clk 0:02:44]} 10. Qd2 {[%clk 0:02:21]}  Nb4 {[%clk 0:02:44]} 11. Be2 {[%clk 0:02:16]}  Qc7 {[%clk 0:02:27]} 12. g4 {[%clk 0:02:05]}  hxg4 {[%clk 0:02:23]} 13. h5 {[%clk 0:02:05]}  e5 {[%clk 0:02:22]} 14. O-O-O {[%clk 0:01:59]}  d5 {[%clk 0:02:21]} 15. dxe5 {[%clk 0:01:57]}  Qxe5 {[%clk 0:02:15]} 16. f4 {[%clk 0:01:56]}  Nxe4 {[%clk 0:02:02]} 17. fxe5 {[%clk 0:01:55]}  Nxd2 {[%clk 0:02:00]} 18. Bxd2 {[%clk 0:01:53]}  Bxe5 {[%clk 0:01:59]} 19. hxg6 {[%clk 0:01:51]}  fxg6 {[%clk 0:01:59]} 20. Rdg1 {[%clk 0:01:20]}  g3 {[%clk 0:01:13]} 21. Nf3 {[%clk 0:01:04]}  Bd6 {[%clk 0:01:10]} 22. Be1 {[%clk 0:00:32]}  Bf4+ {[%clk 0:01:08]} 23. Kd1 {[%clk 0:00:30]}  Bf5 {[%clk 0:01:08]} 24. Bxg3 {[%clk 0:00:27]}  Bxc2+ {[%clk 0:01:06]} 25. Ke1 {[%clk 0:00:27]}  Be3 {[%clk 0:00:58]} 26. Rf1 {[%clk 0:00:20]}  Rae8 {[%clk 0:00:56]} 27. Ne5 {[%clk 0:00:19]}  Rxf1+ {[%clk 0:00:51]} 28. Rxf1 {[%clk 0:00:18]}  d4 {[%clk 0:00:52]} 29. Nd1 {[%clk 0:00:16]}  Bg5 {[%clk 0:00:45]} 30. Bc4+ {[%clk 0:00:14]}  Kg7 {[%clk 0:00:41]} 31. Rf7+ {[%clk 0:00:14]}  Kh6 {[%clk 0:00:41]} 32. Kf2 {[%clk 0:00:13]}  d3 {[%clk 0:00:37]} 33. Ng4+ {[%clk 0:00:13]}  Kh5 {[%clk 0:00:36]} 34. Nde3 {[%clk 0:00:13]}  Bxe3+ {[%clk 0:00:21]} 35. Nxe3 {[%clk 0:00:13]}  d2 {[%clk 0:00:21]} 36. Be2+ {[%clk 0:00:12]}  Kg5 {[%clk 0:00:20]} 37. Bf4+ {[%clk 0:00:13]}  Kh4 {[%clk 0:00:20]} 38. Rh7# {[%clk 0:00:13]} 1-0


[Site "https://www.chess.com"]

[Event "Titled Tuesday Blitz March 22 Early 2022"]
[White "Rosen, Eric"]
[Black "Batsiashvili, Nino"]
[WhiteFideId "2032562"]
[BlackFideId "13602993"]
[WhiteElo "2362"]
[BlackElo "2192"]
[Result "1/2-1/2"]
[Round "08"]
[TimeControl "180+1"]
[Date "2022.03.22"]
[WhiteClock "0:00:02"]
[BlackClock "0:00:13"]

1. d4 {[%clk 0:02:59]}  f5 {[%clk 0:02:57]} 2. Bf4 {[%clk 0:02:57]}  Nf6 {[%clk 0:02:57]} 3. e3 {[%clk 0:02:56]}  g6 {[%clk 0:02:54]} 4. Nf3 {[%clk 0:02:56]}  Bg7 {[%clk 0:02:54]} 5. c4 {[%clk 0:02:57]}  d6 {[%clk 0:02:51]} 6. Nc3 {[%clk 0:02:57]}  O-O {[%clk 0:02:51]} 7. c5 {[%clk 0:02:58]}  c6 {[%clk 0:02:47]} 8. Qb3+ {[%clk 0:02:57]}  d5 {[%clk 0:02:47]} 9. h4 {[%clk 0:02:51]}  Qe8 {[%clk 0:02:29]} 10. Be2 {[%clk 0:02:48]}  Nbd7 {[%clk 0:02:29]} 11. Ne5 {[%clk 0:02:46]}  Nxe5 {[%clk 0:02:02]} 12. Bxe5 {[%clk 0:02:46]}  Ng4 {[%clk 0:02:02]} 13. Bxg7 {[%clk 0:02:31]}  Kxg7 {[%clk 0:02:03]} 14. h5 {[%clk 0:02:30]}  e5 {[%clk 0:02:01]} 15. Qa4 {[%clk 0:02:19]}  f4 {[%clk 0:01:21]} 16. Bxg4 {[%clk 0:01:48]}  Bxg4 {[%clk 0:01:13]} 17. h6+ {[%clk 0:01:49]}  Kg8 {[%clk 0:01:10]} 18. f3 {[%clk 0:01:49]}  Bd7 {[%clk 0:00:28]} 19. dxe5 {[%clk 0:01:39]}  Qxe5 {[%clk 0:00:27]} 20. e4 {[%clk 0:01:39]}  dxe4 {[%clk 0:00:18]} 21. Nxe4 {[%clk 0:01:39]}  Bf5 {[%clk 0:00:19]} 22. O-O-O {[%clk 0:01:27]}  Bxe4 {[%clk 0:00:19]} 23. Qxe4 {[%clk 0:01:27]}  Qxe4 {[%clk 0:00:19]} 24. fxe4 {[%clk 0:01:27]}  Rae8 {[%clk 0:00:18]} 25. Rhe1 {[%clk 0:00:30]}  Re5 {[%clk 0:00:17]} 26. b4 {[%clk 0:00:31]}  Rfe8 {[%clk 0:00:17]} 27. Rd7 {[%clk 0:00:30]}  R8e7 {[%clk 0:00:17]} 28. Rxe7 {[%clk 0:00:23]}  Rxe7 {[%clk 0:00:18]} 29. Kd2 {[%clk 0:00:23]}  Kf7 {[%clk 0:00:18]} 30. Rf1 {[%clk 0:00:19]}  g5 {[%clk 0:00:17]} 31. Kd3 {[%clk 0:00:15]}  Ke6 {[%clk 0:00:17]} 32. Ke2 {[%clk 0:00:04]}  Ke5 {[%clk 0:00:14]} 33. Kf3 {[%clk 0:00:04]}  Rd7 {[%clk 0:00:14]} 34. Rf2 {[%clk 0:00:04]}  Rd3+ {[%clk 0:00:13]} 35. Kg4 {[%clk 0:00:04]}  Rg3+ {[%clk 0:00:12]} 36. Kh5 {[%clk 0:00:04]}  Kxe4 {[%clk 0:00:13]} 37. Re2+ {[%clk 0:00:04]}  Kd3 {[%clk 0:00:12]} 38. Rb2 {[%clk 0:00:03]}  Kc4 {[%clk 0:00:11]} 39. a4 {[%clk 0:00:03]}  a6 {[%clk 0:00:11]} 40. b5 {[%clk 0:00:03]}  axb5 {[%clk 0:00:12]} 41. axb5 {[%clk 0:00:04]}  Kxc5 {[%clk 0:00:11]} 42. bxc6 {[%clk 0:00:03]}  bxc6 {[%clk 0:00:12]} 43. Rc2+ {[%clk 0:00:04]}  Kd5 {[%clk 0:00:13]} 44. Rc5+ {[%clk 0:00:02]}  Kxc5 {[%clk 0:00:13]} 1/2-1/2


[Site "https://www.chess.com"]